[Event "Bangabandhu Premier Div League 2022"]
[Site "Dhaka"]
[Date "2022.12.08"]
[Round "9.4"]
[White "Jabed Al Azad"]
[Black "Chatterjee, Debaraj"]
[Result "1/2-1/2"]
[ECO "B51"]
[WhiteElo "2084"]
[BlackElo "2196"]
[Annotator "TA"]
[PlyCount "61"]
[EventDate "2022.11.30"]
[EventType "team-tourn"]
[EventCountry "BAN"]
[SourceTitle "playchess.com"]
[Source "ChessBase"]
[SourceQuality "1"]
[TimeControl "40/5400+30:1800+30"]

{[%evp 9,61,8,6,0,25,-14,-16,-17,-18,-20,-18,-25,-15,-7,-2,-10,-10,-13,0,0,0,0,-10,-29,19,17,6,14,37,37,35,37,39,28,37,32,36,21,21,11,32,35,57,49,83,69,79,76,122,122,137,143,163,90]} 1. e4 {[%emt 0:02:39]} c5 {[%emt 0:02:39]} 2. Nf3 {[%emt 0:00:49]} d6 {[%emt 0:00:09]} 3. Bb5+ {[%emt 0:00:11]} Nd7 {[%emt 0:00:12]} 4. O-O {[%emt 0:00:08]} a6 {[%emt 0:02:02]} 5. Be2 {[%emt 0:02:03]} Ngf6 {[%emt 0:00:54]} 6. d3 {[%emt 0:00:02] B51: Sicilian: Moscow Variation (3 Bb5+) without 3...Bd7.} g6 {[%emt 0:03:37]} 7. b3 {[%emt 0:00:10]} Bg7 {[%emt 0:00:29][%cal Of6e4]} 8. Bb2 {[%emt 0:00:02] The position is equal.} O-O {[%emt 0:00:41]} 9. a4 {[%emt 0:00:24]} b6 {[%emt 0:11:30] [#]} 10. Na3 $146 {[%emt 0:01:14]} ({Predecessor:} 10. Re1 Bb7 11. Bf1 e5 12. Nbd2 Nh5 13. Nc4 Qc7 14. c3 f5 15. Ng5 Rae8 16. exf5 Rxf5 {½-½ (87) Novikov,E (2276)-Wagner,D (2584) Chess.com INT 2021}) 10... e5 {[%emt 0:00:57]} 11. Nc4 {[%emt 0:00:38]} Qc7 {[%emt 0:02:15]} 12. Nfd2 {[%emt 0:01:42]} Bb7 {[%emt 0:06:07]} 13. Bf3 {[%emt 0:00:29]} Rfd8 {[%emt 0:10:15]} 14. Ne3 {[%emt 0:00:21]} Nf8 {[%emt 0:00:37]} 15. Re1 {[%emt 0:01:33]} Ne6 {[%emt 0:03:57]} 16. c4 {[%emt 0:02:47][%cal Bc2c4,Bc4d5][%mdl 32]} h5 {[%emt 0:10:32]} (16... b5 $142) 17. Nd5 $11 {[%emt 0:00:33]} Nxd5 {[%emt 0:07:48]} 18. cxd5 {[%emt 0:00:16]} Nf8 {[%emt 0:03:09]} 19. Nc4 {[%emt 0:00:37]} b5 {[%emt 0:01:05]} 20. Ne3 {[%emt 0:00:36]} Rdb8 {[%emt 0:03:57]} 21. Qc2 {[%emt 0:00:49]} Qd8 {[%emt 0:01:39]} 22. Bc3 {[%emt 0:02:07]} b4 {[%emt 0:03:38]} 23. Bd2 {[%emt 0:00:07]} a5 {[%emt 0:00:08]} 24. Nc4 {[%emt 0:01:10]} Ba6 {[%emt 0:00:10]} 25. g3 {[%emt 0:00:21]} Bxc4 {[%emt 0:00:42]} 26. dxc4 {[%emt 0:00:25]} Bf6 {[%emt 0:03:24]} 27. h4 {[%emt 0:02:01] White is more active.} Ra7 {[%emt 0:03:04]} 28. Kg2 {[%emt 0:00:17]} Rbb7 {[%emt 0:00:33]} (28... Nd7 $142) 29. Rh1 $16 {[%emt 0:00:06]} Nd7 {[%emt 0:05:39]} 30. Rh2 {[%emt 0:02:22]} Kf8 {[%emt 0:00:17]} 31. Bc1 {[%emt 1:19:01] Weighted Error Value: White=0.05 (flawless) /Black=0.12 (very precise)} (31. Rah1 $18) 1/2-1/2

[Event "Bangabandhu Premier Div League 2022"]
[Site "Dhaka"]
[Date "2022.12.08"]
[Round "9.5"]
[White "Shawket Bin, Osman Shaon"]
[Black "Haque, Rezaul"]
[Result "1-0"]
[ECO "B07"]
[WhiteElo "2069"]
[BlackElo "1949"]
[Annotator "TA"]
[PlyCount "121"]
[EventDate "2022.11.30"]
[EventType "team-tourn"]
[EventCountry "BAN"]
[SourceTitle "playchess.com"]
[Source "ChessBase"]
[SourceQuality "1"]
[TimeControl "40/5400+30:1800+30"]

{[%evp 9,121,65,67,35,73,75,76,70,89,45,48,39,62,0,0,0,0,0,0,-40,-14,-18,-16,-15,-18,-23,-23,-10,-11,-10,-11,-30,-30,-45,-40,-39,0,0,0,0,0,-60,-26,-28,-24,-30,66,55,46,41,38,52,53,52,39,8,8,8,8,6,141,133,199,196,262,159,318,300,293,148,112,8,8,8,8,8,8,8,8,0,3971,404,1622,1448,29953,11438,6406,391,29958,29959,29971,29972,29972,29973,29972,29973,29970,29971,29971,29972,29976,29975,29976,29977,29977,29978,29978,29978,29978,29979,29979,29980,29982,29983]} 1. d4 {[%emt 0:00:03]} d6 {[%emt 0:00:12]} 2. Nf3 {[%emt 0:00:13]} Nf6 {[%emt 0:01:32]} 3. Nc3 {[%emt 0:00:46]} c6 {[%emt 0:01:30]} 4. e4 {[%emt 0:00:54]} b5 {[%emt 0:00:06]} 5. a3 {[%emt 0:05:21]} a6 {[%emt 0:01:41] [#]} 6. Bg5 $146 {[%emt 0:10:00] B07: Pirc Defence: Miscellaneous Systems.} ({Predecessor:} 6. Be2 g6 7. e5 dxe5 8. Nxe5 Bg7 9. Bf3 Nd5 10. Nxc6 Nxc3 11. Nxd8 Nxd1 12. Bxa8 Nxf2 13. Kxf2 Bxd4+ {½-½ (94) Manush,S (2353)-Popchev,M (2268) Novi Sad 2018}) 6... Bg4 {[%emt 0:07:02]} 7. h3 {[%emt 0:02:01]} Bxf3 {[%emt 0:06:31]} 8. Qxf3 {[%emt 0:00:07] Hoping for e5. White is better.} Nbd7 {[%emt 0:02:05][%cal Bb8d7,Bd7c5,Bc5e6][%mdl 32] Against e5} 9. Rd1 {[%emt 0:04:21][%cal Oe4e5]} e5 {[%emt 0:11:04]} 10. dxe5 {[%emt 0:09:19]} dxe5 {[%emt 0:00:18]} 11. Be2 {[%emt 0:06:40] White has more active pieces. The black rooks are badly placed.} ({White should play} 11. g4 $14) 11... Qc7 $11 {[%emt 0:01:29]} 12. O-O {[%emt 0:03:12]} Be7 {[%emt 0:00:22]} 13. Qg3 {[%emt 0:03:25]} Nc5 {[%emt 0:04:52]} 14. Be3 {[%emt 0:11:24]} Ne6 {[%emt 0:07:30]} (14... O-O {keeps more tension.} 15. Bf3 Rfd8 16. h4 Ne6) 15. Bg4 {[%emt 0:02:23]} Nxg4 {[%emt 0:00:54]} 16. Qxg4 {[%emt 0:00:55]} O-O {[%emt 0:03:04]} 17. Ne2 {[%emt 0:01:43][%cal Bc3e2,Be2g3,Bg3f5][%mdl 32]} Rfd8 {[%emt 0:07:40]} 18. Ng3 {[%emt 0:03:48]} Rxd1 {[%emt 0:01:57]} 19. Rxd1 {[%emt 0:00:07]} Rd8 {[%emt 0:00:09]} 20. Rc1 {[%emt 0:03:30]} Bc5 {[%emt 0:01:53]} 21. Bxc5 {[%emt 0:03:48]} Nxc5 {[%emt 0:00:06]} 22. Nf5 {[%emt 0:01:14][%csl Gf5][%cal Rg4g7]} Ne6 {[%emt 0:01:59]} (22... g6 {feels hotter.} 23. Qg5 Ne6 24. Nh6+ Kg7) 23. c4 {[%emt 0:08:18]} Kf8 {[%emt 0:13:09]} 24. cxb5 {[%emt 0:04:17]} axb5 {[%emt 0:00:07]} 25. Rd1 {[%emt 0:06:29]} (25. Qh4 $11 h6 26. Rc3) 25... Rxd1+ {[%emt 0:03:15]} 26. Qxd1 $15 {[%emt 0:00:01][%mdl 4096] Endgame KQN-KQN} g6 {[%emt 0:02:37]} 27. Ne3 {[%emt 0:00:18]} Qd8 {[%emt 0:01:49]} (27... Kg7 $11) 28. Qxd8+ $14 {[%emt 0:00:29]} Nxd8 {[%emt 0:00:02] KN-KN} 29. Ng4 {[%emt 0:00:09]} Ke7 {[%emt 0:01:38]} 30. Nxe5 {[%emt 0:00:12]} Kd6 {[%emt 0:01:06]} 31. Nd3 {[%emt 0:01:16]} c5 {[%emt 0:00:42][%cal Bc6c5,Bc5c4][%mdl 32]} 32. f3 {[%emt 0:02:06]} Ne6 {[%emt 0:04:38]} 33. Kf2 {[%emt 0:00:20]} c4 {[%emt 0:00:19]} 34. Nc1 {[%emt 0:01:05]} Ke5 {[%emt 0:05:40]} (34... Nf4 $1 $11) 35. Ke3 $16 {[%emt 0:01:08]} Nf4 {[%emt 0:01:06]} (35... Kd6 $16 {was called for.} 36. Ne2 Nc5) 36. g3 $1 $18 {[%emt 0:01:27]} Nxh3 {[%emt 0:00:05]} (36... Ne6 $142 37. Ne2 Kd6) 37. Ne2 {[%emt 0:01:06]} g5 $2 {[%emt 0:03:24] [#]} (37... Kd6 $16 {was worth a try.}) 38. f4+ $1 {[%emt 0:00:05]} Kd6 {[%emt 0:01:38]} 39. Nd4 {[%emt 0:03:51]} (39. e5+ $18 Kc5 40. f5) 39... Kc5 $16 {[%emt 0:00:50]} 40. Nf3 {[%emt 0:00:17]} (40. b4+ $16 cxb3 41. Nxb3+ Kb6 42. f5) 40... gxf4+ $11 {[%emt 0:01:50]} 41. gxf4 {[%emt 0:30:08] Ne5 is the strong threat.} f6 {[%emt 0:31:44] Inhibits Ne5.} 42. Nh4 {[%emt 0:00:00]} b4 {[%emt 0:00:00]} 43. axb4+ {[%emt 0:00:00]} Kxb4 {[%emt 0:00:00]} 44. Nf5 {[%emt 0:00:00]} Kc5 $2 {[%emt 0:00:00][%mdl 8192] White stays focused until the end.} (44... Kb3 $11) 45. Ng7 {[%emt 0:00:00]} (45. Ng3 $142 {And now Nh5 would win.} Kd6 46. Kf3) 45... Kd6 $18 {[%emt 0:00:00]} 46. Nh5 {[%emt 0:00:00]} Ke7 {[%emt 0:00:00]} 47. Ng3 {[%emt 0:00:03]} Kd6 {[%emt 0:00:00]} 48. Ne2 $2 {[%emt 0:00:01]} (48. Kf3 {White wants to mate with Ne2.} Kd7 49. Ne2) 48... Ke6 $2 {[%emt 0:00:32]} (48... h5 $18 49. Ng3 h4 50. Nf5+ Kc5 51. Nxh4 Kb4) 49. Kf3 {[%emt 0:00:16] White mates.} h5 {[%emt 0:00:19]} 50. Kg3 {[%emt 0:01:12]} Ng5 {[%emt 0:00:15]} 51. Nd4+ {[%emt 0:00:42]} Kd6 {[%emt 0:01:54]} 52. fxg5 {[%emt 0:01:03]} fxg5 {[%emt 0:00:03] KN-K3P} 53. Kf3 {[%emt 0:00:13]} Ke5 {[%emt 0:00:54]} 54. Ke3 {[%emt 0:00:13]} h4 {[%emt 0:01:04]} 55. Nf5 {[%emt 0:00:47]} h3 {[%emt 0:00:46]} 56. Ng3 {[%emt 0:00:17]} h2 {[%emt 0:01:46]} 57. Nh1 {[%emt 0:00:01]} Kf6 {[%emt 0:00:54]} 58. Kd4 {[%emt 0:00:41]} g4 {[%emt 0:00:30]} 59. Ke3 {[%emt 0:02:17]} Kg5 {[%emt 0:00:11] [#]} 60. Ng3 $1 {[%emt 0:00:18]} Kh4 {[%emt 0:00:39]} 61. Kf4 {[%emt 0:00:13] Weighted Error Value: White=0.41/Black=0.44} 1-0

[Event "Bangabandhu Premier Div League 2022"]
[Site "Dhaka"]
[Date "2022.12.08"]
[Round "9.5"]
[White "abzid, Rahman"]
[Black "Mohammed Abdul, Malek"]
[Result "0-1"]
[ECO "D43"]
[WhiteElo "2043"]
[BlackElo "2152"]
[Annotator "TA"]
[PlyCount "84"]
[EventDate "2022.12.01"]
[EventCountry "BAN"]
[SourceTitle "playchess.com"]
[Source "ChessBase"]
[SourceQuality "1"]
[TimeControl "40/5400+30:1800+30"]

{[%evp 14,84,22,0,54,24,61,68,54,48,53,45,53,51,56,37,33,50,57,47,132,111,99,25,31,36,9,27,46,29,88,-370,-364,-359,-341,-332,-337,-343,-345,-332,-363,-342,-335,-348,-343,-308,0,-363,-361,-325,-293,-301,-162,-367,-375,-381,-380,-454,-449,-786,-775,-1014,-1005,-975,-953,-1999,-1999,-29967,-29964,-29993,-29990,-29993,-29994]} 1. d4 {[%emt 1:31:00]} d5 {[%emt 0:00:24]} 2. c4 {[%emt 0:00:00]} e6 {[%emt 0:00:38]} 3. Nc3 {[%emt 0:00:00]} Nf6 {[%emt 0:00:22]} 4. Bg5 {[%emt 0:01:30]} c6 {[%emt 0:00:13]} 5. e3 {[%emt 0:00:00]} h6 {[%emt 0:00:08]} 6. Bxf6 {[%emt 0:00:00]} Qxf6 {[%emt 0:00:04]} 7. Nf3 {[%emt 0:00:00]} Nd7 {[%emt 0:00:28]} 8. a3 {[%emt 0:00:00]} dxc4 {[%emt 0:05:11] D43: Semi-Slav: 5 Bg5 h6.} (8... g6 $11) 9. Bxc4 $14 {[%emt 0:00:00]} e5 {[%emt 0:00:17]} 10. O-O {[%emt 0:00:00]} Be7 {[%emt 1:27:45] [#] White is slightly better.} 11. Ne4 $146 {[%emt 0:03:30][%cal Bc3e4,Be4g3,Bg3f5][%mdl 32]} ({Predecessor:} 11. d5 Nb6 12. Ne4 Qg6 13. Bd3 cxd5 14. Bb5+ Kf8 15. Ng3 e4 16. Nd4 Bd6 17. f4 {1-0 (34) Husek,Z (2255)-Solmajer,L (2050) Litomysl 1995}) 11... Qg6 {[%emt 0:00:00]} 12. Ng3 {[%emt 0:00:30] Pair of Knights!} (12. Nxe5 $2 Nxe5 13. dxe5 Qxe4 $19) 12... exd4 $1 {[%emt 0:01:00]} 13. Bd3 {[%emt 0:00:00]} Qd6 {[%emt 0:00:00]} 14. Nf5 {[%emt 0:01:00]} Qf6 {[%emt 0:01:00]} 15. exd4 {[%emt 0:00:00] Threatens to win with Re1.} O-O {[%emt 0:00:00]} 16. Qe2 {[%emt 0:01:00]} Re8 {[%emt 0:01:00]} ({Black should try} 16... Bd8 $14) 17. Rfe1 {[%emt 0:00:00][%cal Rf5e7]} Kf8 {[%emt 0:00:00] [#]} 18. Qe4 {[%emt 0:01:00]} (18. Ne5 $1 $16 {[%cal Re5g4] And now Ng4 would win.} Nb6 19. Ng3 (19. Ng4 Qg5 $11)) 18... Nb6 $11 {[%emt 0:00:00]} 19. Nxe7 {[%emt 0:00:30]} Rxe7 {[%emt 0:00:00]} 20. Qh7 {[%emt 0:00:00][%cal Rh7h8]} Rxe1+ {[%emt 0:00:00]} 21. Rxe1 {[%emt 0:00:00][%cal Rh7h8]} Be6 {[%emt 0:02:30] [#]} (21... g5 $1 $11 {keeps the balance.}) 22. Bf5 $2 {[%emt 0:00:00][%mdl 8192]} Qxf5 $19 {[%emt 0:00:30]} (22... Bxf5 $2 23. Qh8#) 23. Qh8+ {[%emt 0:00:00]} Ke7 {[%emt 0:00:00]} 24. Qxg7 {[%emt 0:02:30]} Qf6 {[%emt 0:01:00] Inhibits d5.} 25. Qg3 {[%emt 0:00:00]} Nd5 {[%emt 0:00:00] Inhibits Qc7+.} 26. Ne5 {[%emt 0:01:00]} Kf8 {[%emt 0:00:00][%cal Be7f8,Bf8g7,Bg7h7][%mdl 32]} 27. Qb3 {[%emt 0:00:00]} Nb6 {[%emt 0:00:00]} 28. Qb4+ {[%emt 0:01:00]} Qe7 {[%emt 0:00:00] Strongly threatening ...Qxb4.} 29. Qd2 {[%emt 0:00:00]} Qf6 {[%emt 0:00:00]} 30. Qb4+ $1 {[%emt 0:00:00]} Kg7 {[%emt 0:00:00]} 31. Re3 {[%emt 0:01:30]} Rd8 {[%emt 0:00:00] Hoping for ...Qf4.} 32. h3 {[%emt 0:00:30]} Qh4 {[%emt 0:04:00]} (32... Rg8 $142 {aiming for ...Kh7.} 33. Rf3 Qh4) 33. Rg3+ $2 {[%emt 0:00:00]} (33. Nf3 {is the only way for White.} Qf6 34. Ne5) 33... Kh7 {[%emt 0:00:00]} ({Don't blunder} 33... Kh8 $2 34. Nf3 Qf6 35. Ne5 $19) 34. Nf3 {[%emt 0:01:00]} Qf6 {[%emt 0:01:00]} ({Avoid the trap} 34... Qe4 $2 35. Qe7 Rg8 36. Rxg8 Kxg8 37. Qxb7 $19) 35. Qa5 {[%emt 0:00:30]} Nd5 {[%emt 0:00:00][%cal Bb6d5,Bd5f4,Bf4e2][%mdl 32] ...Nf4 is the strong threat.} 36. Qxa7 {[%emt 0:00:00]} (36. Kh2 $142 Nf4 37. Qc5) 36... Nf4 {[%emt 0:00:00]} 37. Qxb7 {[%emt 0:00:00]} Ne2+ {[%emt 0:00:00]} 38. Kh2 {[%emt 0:00:00]} Nxg3 {[%emt 0:00:00]} ({And not} 38... Nxd4 39. Nxd4 Qxd4 40. Qxc6 $17) 39. fxg3 {[%emt 0:00:00]} Bd5 {[%emt 0:02:30]} 40. Nh4 {[%emt 0:02:30]} Re8 {[%emt 0:00:30] Black mates.} 41. Qb4 {[%emt 0:05:32]} Qf2 {[%emt 0:30:30]} 42. Qd6 {[%emt 0:01:46]} Re1 {[%emt 0:00:30] Weighted Error Value: White=0.79/Black=0.22 (precise)} 0-1

[Event "Bangabandhu Premier Div League 2022"]
[Site "Dhaka"]
[Date "2022.12.08"]
[Round "9.6"]
[White "Muthaiah AL"]
[Black "Aradhya, Garg"]
[Result "0-1"]
[ECO "D02"]
[WhiteElo "2454"]
[BlackElo "2289"]
[Annotator "TA"]
[PlyCount "60"]
[EventDate "2022.12.01"]
[EventCountry "BAN"]
[SourceTitle "playchess.com"]
[Source "ChessBase"]
[SourceQuality "1"]
[TimeControl "40/5400+30:1800+30"]

{[%evp 9,60,0,31,29,38,30,40,35,32,36,33,43,44,40,31,28,22,16,22,-16,0,0,10,-16,0,0,0,-52,32,55,75,81,93,94,104,85,80,-128,-121,-121,-127,-129,-129,-133,-129,-1014,-1011,-996,-995,-1006,-995,-29992,-29993]} 1. d4 {[%emt 0:00:17]} d5 {[%emt 0:00:02]} 2. Bf4 {[%emt 1:31:13]} Nf6 {[%emt 0:00:30]} 3. e3 {[%emt 0:00:00]} c5 {[%emt 0:00:06]} 4. Nf3 {[%emt 0:00:00]} Nc6 {[%emt 0:00:07]} 5. Nbd2 {[%emt 0:00:00]} Nh5 {[%emt 0:00:05]} 6. dxc5 {[%emt 0:00:00]} Nxf4 {[%emt 0:01:10]} 7. exf4 {[%emt 0:00:00]} g6 {[%emt 1:32:00]} 8. c3 {[%emt 0:00:00] White is slightly better.} Bh6 {[%emt 0:00:00]} 9. g3 {[%emt 0:00:00]} O-O {[%emt 0:01:00][%cal Oe7e5]} 10. Bg2 {[%emt 0:04:00]} b6 {[%emt 0:00:30]} 11. cxb6 {[%emt 0:00:00]} Qxb6 {[%emt 0:00:30]} 12. Nb3 {[%emt 0:01:00]} Ba6 {[%emt 0:00:00][%cal Oe7e5]} 13. Bf1 {[%emt 0:00:30] Against e5} Bc4 {[%emt 0:01:00][%cal Oe7e5]} 14. Nfd2 {[%emt 0:00:30]} (14. Rb1 $5 {[%cal Rf1c4]}) 14... Rad8 {[%emt 0:00:30] And now ...e5 would win.} (14... Rfd8 $5 {[%cal Re7e5]}) 15. Qc2 {[%emt 0:00:30]} Qb7 {[%emt 0:00:30]} 16. O-O-O {[%emt 0:00:00]} (16. Bg2 {is more complex.} e5 17. Nxc4 dxc4 18. Na5) 16... Bxf1 {[%emt 0:00:00]} 17. Rhxf1 {[%emt 0:01:00]} d4 {[%emt 0:01:00]} 18. Kb1 {[%emt 0:00:00]} (18. Ne4 $11) 18... d3 {[%emt 0:00:00]} ({Black should play} 18... dxc3 $1 $15 19. Qxc3 Bg7) 19. Qc1 $14 {[%emt 0:00:00]} a5 {[%emt 0:01:00] ...a4 is the strong threat.} 20. Ne4 $1 {[%emt 0:01:30]} Ne5 {[%emt 0:00:30]} 21. Nec5 {[%emt 0:00:00] Against a4} (21. Nxa5 Qxe4 22. Rfe1 Qxe1 $1 23. Rxe1 d2 $17) 21... Qb5 {[%emt 0:00:00] aiming for ...a4.} 22. a4 {[%emt 0:01:00]} Qb6 {[%emt 0:01:00] [#] White must now prevent ...Rd5.} 23. Qe3 $2 {[%emt 0:00:00] [#]} (23. Rfe1 $1 $16 {[%cal Re1e5] is forced if you want to stay better.} Rd5 24. Rxe5 (24. c4 d2 $16) 24... Rxe5 25. Nd7 (25. Nxd3 Rh5 $17) 25... Qxb3 26. Nxe5) 23... Rd5 $17 {[%emt 0:00:30] Hoping for ...Nc4.} 24. Qe4 {[%emt 0:00:02] Prevents Nc4.} (24. Nxd3 $2 {too greedy.} Qxb3 25. Qe2 Nxd3 26. Rxd3 Rxd3 27. Qxd3 Qxa4 $19) 24... Rxc5 {[%emt 0:00:00]} 25. Nxc5 {[%emt 0:00:12] [#]} Rb8 $1 {[%emt 0:00:00][%csl Gb8][%cal Rb6b2,Bf8b8,Bb8d8,Bd8d4][%mdl 32]} 26. b4 {[%emt 0:00:33]} (26. Qxe5 $2 Qxb2#) 26... Qxc5 {[%emt 0:00:00] Dancing on a razor blade.} 27. fxe5 $2 {[%emt 0:01:43][%mdl 8192] Loses the game.} (27. Qxe5 $17 Rxb4+ 28. cxb4 Qc2+ 29. Ka1 Qxa4+ 30. Kb1 Qc2+ 31. Ka1) 27... Qxc3 $19 {[%emt 0:00:00]} 28. b5 {[%emt 0:00:00]} Rd8 {[%emt 0:02:30]} 29. b6 {[%emt 0:01:00]} Rd4 {[%emt 0:00:30]} 30. Rxd3 {[%emt 0:00:00]} Qb4+ {[%emt 0:00:00] Weighted Error Value: White=0.60/Black=0.09 (flawless)} (30... Rxe4 $2 31. Rxc3 Rb4+ 32. Kc2 Rxb6 33. Rc5 $18) 0-1

[Event "Bangabandhu Premier Div League 2022"]
[Site "Dhaka"]
[Date "2022.12.08"]
[Round "9.6"]
[White "Rahman, Siddiqur"]
[Black "Mendonca, Leon Luke"]
[Result "0-1"]
[ECO "A62"]
[WhiteElo "1970"]
[BlackElo "2565"]
[Annotator "TA"]
[PlyCount "62"]
[EventDate "2022.11.30"]
[EventType "team-tourn"]
[EventCountry "BAN"]
[SourceTitle "playchess.com"]
[Source "ChessBase"]
[SourceQuality "1"]
[TimeControl "40/5400+30:1800+30"]

{[%evp 18,62,19,9,12,0,3,-8,-6,-39,-35,-49,-47,-97,-77,-100,-97,-126,-111,-125,-105,-120,-113,-132,-120,-150,-146,-173,-138,-248,-256,-364,-342,-350,-359,-533,-516,-533,-523,-655,-668,-974,-970,-1530,-1461,-29991,-29992]} 1. d4 {[%emt 0:00:04]} Nf6 {[%emt 0:00:05]} 2. c4 {[%emt 0:00:14]} c5 {[%emt 0:00:17]} 3. d5 {[%emt 0:01:26]} e6 {[%emt 0:00:08]} 4. Nc3 {[%emt 0:01:16]} exd5 {[%emt 0:00:08]} 5. cxd5 {[%emt 0:00:23]} d6 {[%emt 0:00:07]} 6. g3 {[%emt 0:00:48]} g6 {[%emt 0:00:06]} 7. Bg2 {[%emt 0:00:31]} Bg7 {[%emt 0:00:06]} 8. Nf3 {[%emt 0:00:34]} O-O {[%emt 0:00:07]} 9. O-O {[%emt 0:00:08]} Re8 {[%emt 0:00:12]} 10. Re1 {[%emt 0:03:15]} Nbd7 {[%emt 0:00:47] A62: Modern Benoni: Fianchetto Variation without early ...Nbd7.} 11. Bf4 {[%emt 0:04:29]} Ng4 {[%emt 0:01:17] [#]} 12. Qc2 $146 {[%emt 0:05:42]} ({Don't play} 12. Bxd6 Qb6 13. Bf4 c4 $15) ({Predecessor:} 12. Qd2 Nge5 13. Bg5 f6 14. Bh6 Bxh6 15. Qxh6 Qe7 16. Qd2 Nb6 17. b3 Bd7 18. a4 {1-0 (54) Donchenko,A (2659)-Vitiugov,N (2715) Tornelo INT 2021}) 12... Nde5 {[%emt 0:02:46] The position is equal.} 13. Bxe5 {[%emt 0:04:22]} Nxe5 {[%emt 0:01:12]} 14. Nxe5 {[%emt 0:00:59]} Bxe5 {[%emt 0:01:03]} 15. Rab1 {[%emt 0:06:45]} (15. a4 $15) 15... Bd7 {[%emt 0:01:08]} 16. e4 {[%emt 0:11:21]} b5 {[%emt 0:01:15]} 17. Bf1 {[%emt 0:10:18]} Qa5 {[%emt 0:05:34]} 18. a3 {[%emt 0:03:42]} Rac8 {[%emt 0:01:58]} 19. Ne2 {[%emt 0:04:44]} c4 {[%emt 0:01:15] Black has more active pieces.} 20. Nc3 {[%emt 0:03:46]} Qb6 {[%emt 0:00:59]} 21. Kh1 {[%emt 0:03:25]} a5 {[%emt 0:00:23]} 22. Nd1 {[%emt 0:06:46]} Bg7 {[%emt 0:17:25]} 23. b3 {[%emt 0:06:38] [#]} (23. Ne3 $17) 23... Qc5 $1 $19 {[%emt 0:02:38]} 24. Ne3 {[%emt 0:10:15]} (24. b4 $142 axb4 25. axb4) 24... Qxa3 {[%emt 0:00:31]} 25. bxc4 {[%emt 0:00:30]} Qc5 {[%emt 0:00:37]} 26. Qa2 {[%emt 0:02:50]} (26. Ng2 {was called for.}) 26... b4 {[%emt 0:00:05]} ({Not} 26... Rxe4 27. cxb5 Bc3 28. Rec1 $15) 27. Nc2 {[%emt 0:02:53]} Rb8 {[%emt 0:00:29]} 28. e5 {[%emt 0:02:14]} Bxe5 {[%emt 0:00:07]} 29. Rxe5 {[%emt 0:02:40]} Rxe5 {[%emt 0:00:04]} 30. Na3 {[%emt 0:00:42]} Bf5 {[%emt 0:00:09]} 31. Nc2 {[%emt 0:00:48]} Qxf2 {[%emt 0:00:09] White did not feel at home in the position after the opening.   Weighted Error Value: White=1.05/Black=0.03 (flawless)} 0-1

[Event "Bangabandhu Premier Div League 2022"]
[Site "Dhaka"]
[Date "2022.12.08"]
[Round "9.7"]
[White "Iniyan, P."]
[Black "Nayan Kumar, Mohanto"]
[Result "1-0"]
[ECO "D52"]
[WhiteElo "2534"]
[BlackElo "1976"]
[Annotator "TA"]
[PlyCount "43"]
[EventDate "2022.11.30"]
[EventType "team-tourn"]
[EventCountry "BAN"]
[SourceTitle "playchess.com"]
[Source "ChessBase"]
[SourceQuality "1"]
[TimeControl "40/5400+30:1800+30"]

{[%evp 19,43,0,1,0,0,-12,67,54,60,41,69,4,247,235,227,150,177,181,355,347,364,333,393,381,543,527]} 1. d4 {[%emt 0:00:38]} d5 {[%emt 0:00:08]} 2. c4 {[%emt 0:00:21]} c6 {[%emt 0:00:05]} 3. Nf3 {[%emt 0:00:11]} Nf6 {[%emt 0:00:07]} 4. Nc3 {[%emt 0:00:07]} e6 {[%emt 0:00:06]} 5. Bg5 {[%emt 0:00:10]} Nbd7 {[%emt 0:00:43]} 6. e3 {[%emt 0:00:28][%cal Be2e3,Be3e4,Be4e5][%mdl 32]} Qa5 {[%emt 0:00:40]} 7. cxd5 {[%emt 0:01:43]} exd5 {[%emt 0:00:45]} 8. Bd3 {[%emt 0:00:39]} Ne4 {[%emt 0:01:09]} 9. O-O $1 {[%emt 0:01:15] 9.0-0 scores better than 9.Qc2.} Nxg5 {[%emt 1:31:17]} 10. Nxg5 {[%emt 0:00:25]} Nf6 {[%emt 0:00:00]} 11. e4 {[%emt 0:13:48] D52: Queen's Gambit Declined: Cambridge Springs Variation.} h6 {[%emt 0:00:00]} 12. Nf3 {[%emt 0:01:20] [#] Black must now prevent exd5.} Be6 $146 {[%emt 0:00:00]} (12... dxe4 $11 13. Nxe4 Nxe4 14. Bxe4 Be6) ({Predecessor:} 12... dxe4 13. Nxe4 Nxe4 14. Bxe4 Bd6 15. d5 c5 16. Bc2 O-O 17. Qd3 f5 18. Rfe1 Qc7 {1-0 (40) Sjugirov,S (2641)-Pridorozhni,A (2517) Khanty-Mansiysk 2013}) 13. e5 $14 {[%emt 0:00:53] White is slightly better.} Nd7 {[%emt 0:00:00]} 14. a3 {[%emt 0:02:15]} Be7 {[%emt 0:00:00]} 15. Bc2 {[%emt 0:00:21]} (15. Nd2 $14) 15... c5 $2 {[%emt 0:00:00] [#] This costs Black the game.} (15... g5 $11) 16. dxc5 $1 $18 {[%emt 0:04:07] And now b4 would win.} Qxc5 {[%emt 0:00:00]} 17. Re1 {[%emt 0:03:35] Threatens to win with Nd4.} Nb6 {[%emt 0:00:00]} 18. Nd4 {[%emt 0:00:48] Hoping for Ncb5.} Qc8 $2 {[%emt 0:00:00]} (18... O-O-O 19. Bf5 Bxf5) 19. Ncb5 {[%emt 0:00:52] Pair of Knights!} Qd7 {[%emt 0:00:00]} 20. f4 {[%emt 0:00:28][%cal Bf2f4,Bf4f5][%mdl 32]} Bg4 {[%emt 0:00:00]} 21. e6 {[%emt 0:01:34]} Bxe6 {[%emt 0:00:00]} (21... Bxd1 $142 22. exd7+ Kxd7 23. Bxd1 Kd8) 22. f5 {[%emt 0:00:13][%mdl 64] Trapped Piece.   Weighted Error Value: White=0.17 (very precise) /Black=0.89} 1-0